lending/lending_fUSD_20250418
["ID","MTS","AMOUNT","RATE_DAILY","PERIOD"]
[358368379,1745002354971,600.0,0.000198,7]
[358368380,1745002357049,600.0,0.000199,7]
[358368381,1745002439024,193.17100758,0.000199,3]
[358368382,1745002699932,250.0,0.00017,2]
[358368384,1745002984686,153.43,0.00027425,30]
[358368385,1745003112442,-232.24,0.00019,2]
[358368388,1745003158478,232.24,0.00018,2]
[358368389,1745003221879,340.212787,0.00018905,2]
[358368390,1745003225136,-67.76,0.00019,2]
[358368391,1745003225157,-433.84,0.00019299,2]
[358368392,1745003225188,-783.95932756,0.000196,2]
[358368393,1745003225213,-1089.18255584,0.00019799,2]
[358368394,1745003225236,-212.61496085,0.000198,2]
[358368395,1745003225258,-1089.18255583,0.000198,2]
[358368396,1745003225280,-200.0,0.00019845,2]
[358368397,1745003225302,-212.61496085,0.00019885,2]
[358368398,1745003225324,-300.0,0.00019899,2]
[358368399,1745003225347,-300.0,0.00019899,2]
[358368400,1745003225370,-353.96627733,0.000199,2]
[358368401,1745003225402,-646.03372267,0.000199,2]
[358368402,1745003225427,-1000.0,0.000199,2]
[358368403,1745003225450,-2500.0,0.000199,2]
[358368404,1745003225473,-1758.95267532,0.000199,2]
[358368405,1745003225500,-1533.28331557,0.000199,2]
[358368406,1745003225524,-971.27807849,0.000199,2]
[358368407,1745003225547,-971.27807849,0.000199,2]
[358368408,1745003225570,-200.0,0.00019946,2]
[358368409,1745003225591,-550.0,0.00019972,2]
[358368410,1745003225613,-500.0,0.00019973,2]
[358368411,1745003225634,-50.81245798,0.00019973,2]
[358368412,1745003237095,-390.21892913,0.00019973,2]
[358368413,1745003237116,-500.0,0.00019973,2]
[358368414,1745003237137,-76.59795258,0.0001998,2]
[358368415,1745003331357,737.76,0.00018069,2]
[358368416,1745003354103,-3733.2582238,0.00019639,2]
[358368418,1745003398026,-365.85416475,0.00019639,2]
[358368503,1745003438099,-136.35761145,0.00019639,2]
[358368504,1745003438125,-300.0,0.00019899,2]
[358368505,1745003438151,-300.0,0.00019899,2]
[358368506,1745003438177,-1000.0,0.000199,2]
[358368507,1745003438201,-1000.0,0.000199,2]
[358368508,1745003438226,-500.0,0.00019973,2]
[358368509,1745003438250,-6090.79,0.00019974,2]
[358368510,1745003438276,-15846.85238855,0.0001998,2]
[358368511,1745003438425,-5582.85458299,0.0001998,2]
[358368512,1745003438435,-1000.0,0.00019985,2]
[358368513,1745003438445,-1486.5468482,0.00019986,2]
[358368514,1745003438455,-20377.8850184,0.00019986,2]
[358368515,1745003438464,-223.78279832,0.00019986,2]
[358368665,1745003440368,-500.0,0.00019986,2]
[358368666,1745003440481,-2747.55609628,0.00019986,2]
[358368667,1745003440498,-356.52,0.00019989,2]
[358368668,1745003440508,-500.0,0.00019999,2]
[358368669,1745003440518,-500.0,0.00019999,2]
[358368670,1745003440528,-152.09289653,0.00019999,2]
[358368671,1745003440537,-1321594.54962774,0.0002,2]
[358368672,1745003440553,-426.42668953,0.0002,2]
[358368673,1745003440565,-564.61173046,0.0002,2]
[358368674,1745003440707,-1560.84649311,0.0002,2]
[358368675,1745003440720,-844.845,0.0002,2]
[358368677,1745003440802,-281.58509351,0.0002,2]
[358368698,1745003443462,-673.33892989,0.0002,2]
[358368740,1745003446242,-2000.0,0.0002,2]
[358368765,1745004008576,153.43,0.00027425,30]
[358368769,1745004337335,409.92443273,9e-05,2]
[358368770,1745004344154,-232.24,0.000194,2]
[358368771,1745004370871,-157.91,0.0001932,2]
[358368773,1745004376730,-198.61,0.0001932,2]
[358368774,1745004376756,-11.12,0.000194,2]
[358368775,1745004426123,-355.25021123,0.000194,2]
[358368776,1745004426143,-304.32,0.00019413,2]
[358368777,1745004426163,-262.93419653,0.0001946,2]
[358368778,1745004426184,-40.44331092,0.00019502,2]
[358368779,1745004427219,-698.63056484,0.00019502,2]
[358368780,1745004438093,-1231.36612424,0.00019502,2]
[358368781,1745004438114,-2012.0,0.00019676,2]
[358368782,1745004438136,-160.07,0.00019782,2]
[358368783,1745004438160,-251.1042774,0.00019799,2]
[358368784,1745004438183,-262.93419654,0.00019808,2]
[358368785,1745004438207,-391.25049159,0.0001989,2]
[358368786,1745004438231,-300.0,0.00019899,2]
[358368787,1745004438255,-300.0,0.00019899,2]
[358368788,1745004438278,-21.50384196,0.00019899,2]
[358368789,1745004450106,-828.49615804,0.00019899,2]
[358368790,1745004450128,-1000.0,0.000199,2]
[358368791,1745004450149,-2491.9947,0.000199,2]
[358368792,1745004450170,-6164.81522972,0.000199,2]
[358368794,1745004513132,250.0,0.00017,2]
[358368798,1745004535527,-300.0,0.00019,2]
[358368800,1745004535556,-500.0,0.00019428,2]
[358368801,1745004535586,-473.7858015,0.00019474,2]
[358368815,1745004632283,-372.14453403,0.00019383,2]
[358368872,1745004638310,-2288.7350225,0.00019383,2]
[358369070,1745004640729,-7.51431863,0.00019383,2]
[358369072,1745004640741,-82.60612484,0.00019383,2]
[358369074,1745004640750,-2460.76,0.000194,2]
[358369076,1745004640760,-300.0,0.00019473,2]
[358369078,1745004640774,-23426.2141985,0.00019474,2]
[358369080,1745004640783,-238.5490635,0.00019799,2]
[358369082,1745004640793,-475.42495508,0.000198,2]
[358369084,1745004640804,-46653.59184647,0.000199,2]
[358369086,1745004640814,-165.68777653,0.000199,2]
[358369088,1745004640823,-1000.0,0.000199,2]
[358369090,1745004640833,-2600.43518771,0.000199,2]
[358369092,1745004640843,-269.2981,0.000199,2]
[358369094,1745004640852,-1000.0,0.000199,2]
[358369096,1745004640861,-2349.1708,0.000199,2]
[358369098,1745004640871,-1000.0,0.000199,2]
[358369100,1745004640881,-1000.0,0.000199,2]
[358369102,1745004640890,-1000.0,0.000199,2]
[358369104,1745004640900,-1000.0,0.000199,2]
[358369105,1745004640909,-1000.0,0.000199,2]
[358369107,1745004640919,-1000.0,0.000199,2]
[358369109,1745004640929,-1000.0,0.000199,2]
[358369111,1745004640938,-3066.56663114,0.000199,2]
[358369114,1745004640949,-1000.0,0.000199,2]
[358369115,1745004640958,-250.0,0.00019942,2]
[358369139,1745004641175,-175.01,0.00019944,2]
[358369142,1745004641196,-500.0,0.00019973,2]
[358369144,1745004641206,-602.72879698,0.00019973,2]
[358369146,1745004641216,-500.0,0.00019973,2]
[358369148,1745004641225,-500.0,0.00019973,2]
[358369150,1745004641235,-171.6686,0.00019973,2]
[358369152,1745004641244,-18698.9978011,0.00019986,2]
[358369154,1745004641254,-1364.0736622,0.00019986,2]
[358369156,1745004641263,-2690.7004818,0.00019986,2]
[358369158,1745004641273,-12654.0849531,0.00019986,2]
[358369160,1745004641282,-450.0,0.00019999,2]
[358369163,1745004641295,-500.0,0.00019999,2]
[358369164,1745004641305,-152.09289653,0.00019999,2]
[358369166,1745004641314,-1194553.05674507,0.0002,2]
[358369369,1745004643437,-47.19208118,0.0002,2]
[358369534,1745004646429,-495.04279994,0.0002,2]
[358369535,1745004712785,-407.98264617,0.00019367,2]
[358369538,1745004947099,-408.42573,0.0001928,2]
[358369539,1745004994179,760.55,0.00017413,2]
[358369540,1745005008232,-194.88734647,0.00019183,2]
[358369541,1745005078763,153.43,0.00027425,30]
[358369542,1745005087833,-267.76,0.00019183,2]
[358369543,1745005126811,10000.0,0.00032,60]
[358369544,1745005146683,50000.0,0.00048229,30]
[358369545,1745005153544,50000.0,0.00048229,31]
[358369546,1745005157477,50000.0,0.00048229,32]
[358369547,1745005160838,50000.0,0.00048229,33]
[358369548,1745005161433,408.42573,0.00018899,2]
[358369549,1745005164590,50000.0,0.00048229,34]
[358369550,1745005167888,-250.01814713,0.00018979,2]
[358369551,1745005175002,250.018148,0.00018884,2]
[358369552,1745005178553,-189.27754714,0.00018979,2]
[358369553,1745005189261,189.277547,0.00018884,2]
[358369554,1745005215459,5216.51,0.00018855,2]
[358369555,1745005262593,-189.14722817,0.00018979,2]
[358369556,1745005322189,-150.00279713,0.00018979,2]
[358369557,1745005388373,51583.26,0.00018819,2]
[358369558,1745005411818,-189.14722817,0.00018979,2]
[358369559,1745005510734,228.881512,0.00018884,2]
[358369560,1745005512047,-32.40705226,0.00018979,2]
[358369561,1745005512070,-176.06886515,0.00018987,2]
[358369562,1745005514714,23900.0,0.0001876,2]
[358369564,1745005530294,-73.93113485,0.00018987,2]
[358369565,1745005530316,-86.97687603,0.00018994,2]
[358369566,1745005553556,985.22,0.00018759,2]
[358369567,1745005555621,-113.02312397,0.00018994,2]
[358369568,1745005555642,-56.71420103,0.00019028,2]
[358369569,1745005585552,233.542286,0.00018932,2]
[358369570,1745005597831,-169.02537182,0.00019007,2]
[358369571,1745005622495,-2.17521557,0.00019007,2]
[358369572,1745005622519,-116.56579897,0.00019028,2]
[358369573,1745005622543,-65.7279118,0.00019107,2]
[358369574,1745005627202,-184.2720882,0.00019107,2]
[358369575,1745005627224,-208.47591741,0.00019267,2]
[358369576,1745005627245,-91.57427,0.0001928,2]
[358369577,1745005627265,-405.68,0.0001933,2]
[358369578,1745005627287,-150.0,0.00019331,2]
[358369579,1745005627307,-200.0,0.00019353,2]
[358369580,1745005627329,-592.01735383,0.00019367,2]
[358369581,1745005627350,-348.44,0.00019367,2]
[358369582,1745005627371,-310.8,0.00019367,2]
[358369583,1745005627392,-300.0,0.00019399,2]
[358369584,1745005627413,-228.0,0.00019399,2]
[358369585,1745005627434,-300.0,0.00019399,2]
[358369586,1745005627456,-6589.0146552,0.000194,2]
[358369587,1745005627481,-250.0,0.00019405,2]
[358369588,1745005627501,-218.96159419,0.00019527,2]
[358369589,1745005629756,-163.08840372,0.00019527,2]
[358369590,1745005630164,-3617.95000209,0.00019527,2]
[358369591,1745005630185,-208.4759174,0.00019534,2]
[358369592,1745005630211,-179.0,0.00019644,2]
[358369593,1745005630233,-760.55,0.00019677,2]
[358369594,1745005630253,-475.81541166,0.000197,2]
[358369595,1745005632783,-276.72772999,0.00019267,2]
[358369596,1745005634092,-953.7835621,0.000197,2]
[358369597,1745005652103,-489.40102624,0.000197,2]
[358369598,1745005652126,-360.15419449,0.000197,2]
[358369599,1745005731099,-190.80849447,0.00019461,2]
[358369602,1745005770403,-295.87968766,0.00019461,2]
[358369603,1745005796597,4000.0,0.00018759,2]
[358369607,1745005831426,-719.29181787,0.00019461,2]
[358369608,1745005831435,-37.14807552,0.000196,2]
[358369609,1745005831582,-602.69772999,0.000196,2]
[358369610,1745005831591,-1000.0,0.000196,2]
[358369611,1745005831601,-172.77,0.00019793,2]
[358369612,1745005831610,-300.0,0.00019799,2]
[358369613,1745005831620,-174.06031192,0.00019799,2]
[358369614,1745005831632,-64.48875158,0.00019799,2]
[358369615,1745005831641,-185.0,0.00019799,2]
[358369616,1745005831651,-407.98264617,0.000198,2]
[358369617,1745005831660,-1242.52859225,0.000198,2]
[358369618,1745005831676,-585.17802667,0.000198,2]
[358369631,1745005837562,-844.36,0.000198,2]
[358369632,1745005837574,-6626.74165206,0.000198,2]
[358369633,1745005837584,-316.0233,0.00019886,2]
[358369634,1745005837594,-3526.2448,0.00019886,2]
[358369635,1745005837604,-269.2981,0.00019886,2]
[358369636,1745005837613,-2349.1708,0.00019886,2]
[358369637,1745005837623,-583.2942,0.00019886,2]
[358369638,1745005837632,-224.671,0.00019886,2]
[358369639,1745005837642,-2049.75472266,0.00019899,2]
[358369640,1745005837651,-694.40142528,0.000199,2]
[358369641,1745005837663,-305.59857472,0.000199,2]
[358369642,1745005837673,-247.00142568,0.000199,2]
[358369643,1745005837684,-2639.38347432,0.000199,2]
[358369644,1745005837694,-12345.29417044,0.000199,2]
[358369645,1745005837705,-757.415558,0.000199,2]
[358369837,1745005839811,-23031.57237156,0.000199,2]
[358369839,1745005839822,-500.0,0.000199,2]
[358369841,1745005839831,-14931.3879,0.000199,2]
[358369843,1745005839840,-3066.56663114,0.000199,2]
[358369845,1745005839849,-253.0470722,0.000199,2]
[358369847,1745005839858,-1000.0,0.000199,2]
[358369849,1745005839868,-171.6686,0.00019973,2]
[358369851,1745005839880,-602.72879698,0.00019973,2]
[358369853,1745005839890,-500.0,0.00019973,2]
[358369855,1745005839900,-500.0,0.00019973,2]
[358369857,1745005839909,-2552.596,0.00019973,2]
[358369859,1745005839919,-1262.7684582,0.00019986,2]
[358369861,1745005839928,-168.2357517,0.00019986,2]
[358369863,1745005839938,-84352.9381611,0.00019986,2]
[358369865,1745005839947,-9973.3511225,0.00019986,2]
[358369867,1745005839957,-261.86484945,0.0001999,2]
[358369869,1745005839966,-500.0,0.00019999,2]
[358369871,1745005839975,-500.0,0.00019999,2]
[358369873,1745005839985,-152.09289653,0.00019999,2]
[358369875,1745005839995,-3236983.33395355,0.0002,2]
[358369877,1745005840006,-2065.10645211,0.0002,2]
[358369879,1745005840018,-9200.0,0.0002,2]
[358369881,1745005840029,-16006.37,0.0002,2]
[358369883,1745005840040,-1006.2,0.0002,2]
[358369885,1745005840051,-3071.32839809,0.0002,2]
[358369888,1745005840063,-549.11999999,0.0002,2]
[358369920,1745005840376,-0.01612605,0.0002,2]
[358370071,1745005842654,-873.04153788,0.0002,2]
[358370072,1745005842665,-34992.34936365,0.0002,2]
[358370073,1745005842676,-1719.6537678,0.0002,2]
[358370074,1745005842687,-333.52097539,0.0002,2]
[358370075,1745005842698,-16522.14655332,0.0002,2]
[358370363,1745005845507,-251.4,0.0002,2]
[358370375,1745005845560,-657.27927126,0.0002,2]
[358370379,1745005845571,-630.820596,0.0002,2]
[358370382,1745005845583,-2155.4,0.0002,2]
[358370420,1745005930266,-295.88115725,0.00019178,2]
[358370421,1745006117097,684.49,0.00017686,2]
[358370422,1745006123636,-202.1704,0.00019178,2]
[358370423,1745006296404,-282.57993476,0.00019178,2]
[358370424,1745006325354,250.0,0.00017,2]
[358370425,1745006328473,-241.9501053,0.00019,2]
[358370426,1745006403567,-58.0498947,0.00019,2]
[358370427,1745006403592,-221.22484508,0.00019,2]
[358370428,1745006527911,-203.13057405,0.00019,2]
[358370429,1745006583272,-75.64458087,0.00019,2]
[358370430,1745006583296,-128.27397632,0.00019,2]
[358370431,1745006603411,-200.00990745,0.00019,2]
[358370432,1745006608252,-171.71611623,0.00019,2]
[358370433,1745006608274,-47.05174357,0.00019,2]
[358370434,1745006710980,-160.63708723,0.00019,2]
[358370435,1745006764281,-160.63708723,0.00019,2]
[358370436,1745006788947,-109.7504975,0.00019,2]
[358370437,1745006788969,-217.44587564,0.000191,2]
[358370438,1745006826099,-566.51345192,0.000191,2]
[358370439,1745006826128,-399.00720778,0.00019165,2]
[358370440,1745006826284,255.61,0.00018913,2]
[358370441,1745006826753,-250.7381375,0.00019165,2]
[358370442,1745006827927,50000.0,0.00048248,30]
[358370443,1745006834478,50000.0,0.00048248,31]
[358370444,1745006837135,-1849.89394085,0.00019165,2]
[358370445,1745006837156,-211.19850799,0.00019178,2]
[358370446,1745006837179,-300.0,0.00019212,2]
[358370447,1745006837200,-8290.18235108,0.00019213,2]
[358370448,1745006838204,-192.441916,0.00019213,2]
[358370449,1745006838568,50000.0,0.00048248,32]
[358370450,1745006842792,50000.0,0.00048248,33]
[358370451,1745006845073,-5063.02646463,0.00019213,2]
[358370452,1745006845869,-192.441916,0.00019213,2]
[358370453,1745006847559,50000.0,0.00048248,34]
[358370454,1745006858014,-160.52535,0.00019014,2]
[358370455,1745006884637,352.967266,0.00018919,2]
[358370456,1745006936095,-0.60465,0.00019014,2]
[358370458,1745006936122,-492.61,0.00019031,2]
[358370460,1745006936149,-532.32521546,0.00019165,2]
[358370462,1745006936176,-3116.86243252,0.00019213,2]
[358370463,1745006940039,-257.214401,0.00019213,2]
[358370464,1745006960998,-250.0,0.00019117,2]
[358370465,1745006977547,-166.64346977,0.00019027,2]
[358370466,1745006986007,-250.0,0.00019027,2]
[358370477,1745007031859,-510.08653023,0.00019027,2]
[358370478,1745007031868,-250.0,0.00019072,2]
[358370480,1745007031878,-82.07380642,0.00019136,2]
[358370507,1745007034061,173.857871,0.00018931,2]
[358370509,1745007037873,-117.92619358,0.00019136,2]
[358370510,1745007037882,-544.22233424,0.00019213,2]
[358370559,1745007038573,-173.4600071,0.00019213,2]
[358370562,1745007040018,-6070.14817743,0.00019213,2]
[358370563,1745007040028,-309.15464146,0.00019265,2]
[358370564,1745007040038,-1000.0,0.00019365,2]
[358370565,1745007040048,-200.0,0.00019386,2]
[358370566,1745007040057,-309.15464144,0.00019533,2]
[358370567,1745007040067,-500.0,0.00019539,2]
[358370568,1745007040077,-300.0,0.00019698,2]
[358370569,1745007040087,-300.0,0.00019699,2]
[358370570,1745007040096,-1000.0,0.000197,2]
[358370571,1745007040106,-327.19637314,0.000197,2]
[358370572,1745007040115,-166.98,0.0001971,2]
[358370573,1745007040125,-226.6216103,0.00019799,2]
[358370574,1745007040134,-1000.0,0.000198,2]
[358370575,1745007040143,-309.15464144,0.000198,2]
[358370576,1745007040153,-500.0,0.00019873,2]
[358370577,1745007040162,-550.0,0.00019885,2]
[358370578,1745007040171,-2042.076,0.00019886,2]
[358370579,1745007040181,-28009.3935,0.00019886,2]
[358370580,1745007040191,-1000.0,0.00019886,2]
[358370581,1745007040201,-983.9899845,0.0001989,2]
[358370582,1745007040210,-175.89526755,0.0001989,2]
[358370583,1745007040220,-175.89526753,0.00019891,2]
[358370585,1745007040230,-175.89526753,0.00019892,2]
[358370587,1745007040239,-175.89526753,0.00019893,2]
[358370589,1745007040248,-175.89526753,0.00019894,2]
[358370591,1745007040258,-175.89526753,0.00019896,2]
[358370593,1745007040267,-175.89526753,0.00019897,2]
[358370595,1745007040276,-175.89526753,0.00019898,2]
[358370597,1745007040285,-175.89526753,0.00019899,2]
[358370599,1745007040294,-500.0,0.000199,2]
[358370601,1745007040303,-203.0406,0.000199,2]
[358370603,1745007040313,-891.9069,0.000199,2]
[358370604,1745007040323,-225.0,0.000199,2]
[358370606,1745007040332,-14931.3879,0.000199,2]
[358370608,1745007040341,-316.0233,0.000199,2]
[358370610,1745007040351,-6573.6023,0.000199,2]
[358370612,1745007040360,-1000.0,0.000199,2]
[358370614,1745007040370,-1000.0,0.000199,2]
[358370616,1745007040379,-1533.28331557,0.000199,2]
[358370618,1745007040389,-2500.0,0.000199,2]
[358370620,1745007040398,-615.09483051,0.000199,2]
[358370622,1745007040407,-175.89526753,0.000199,2]
[358370624,1745007040416,-150.0,0.00019908,2]
[358370626,1745007040426,-171.6686,0.00019945,2]
[358370628,1745007040435,-684.49,0.00019949,2]
[358370630,1745007040444,-500.0,0.00019973,2]
[358370632,1745007040454,-160.41344681,0.00019973,2]
[358370634,1745007040464,-500.0,0.00019973,2]
[358370637,1745007040474,-500.0,0.00019973,2]
[358370638,1745007040483,-500.0,0.00019973,2]
[358370641,1745007040493,-500.0,0.00019973,2]
[358370643,1745007040502,-500.0,0.00019973,2]
[358370645,1745007040511,-390.21892913,0.00019973,2]
[358370646,1745007040522,-1377.7177523,0.00019986,2]
[358370647,1745007040534,-10496.2097628,0.00019986,2]
[358370648,1745007040543,-94783.1255641,0.00019986,2]
[358370650,1745007040553,-261.86484945,0.0001999,2]
[358370652,1745007040562,-450.0,0.00019999,2]
[358370653,1745007040572,-500.0,0.00019999,2]
[358370654,1745007040582,-152.09289653,0.00019999,2]
[358370655,1745007040591,-3139043.12628289,0.0002,2]
[358370656,1745007040603,-3950.0,0.0002,2]
[358370657,1745007040613,-1249.50017022,0.0002,2]
[358370658,1745007040622,-11821.3882065,0.0002,2]
[358370659,1745007040632,-1008.17510873,0.0002,2]
[358370660,1745007040642,-1752.79808869,0.0002,2]
[358370661,1745007040652,-53022.29633797,0.0002,2]
[358370662,1745007040669,-1285.09837437,0.0002,2]
[358370680,1745007042790,-530648.28878082,0.0002,2]
[358370690,1745007045904,-396.77296,0.0002,2]
[358370700,1745007056549,153.43,0.00027425,30]
[358370701,1745007110622,-150.0,0.00019136,2]
[358370702,1745007176603,667.69,0.00017218,2]
[358370703,1745007267571,-279.280853,0.0001904,2]
[358370704,1745007268048,173.02,0.00018862,2]
[358370706,1745007357213,1000.0,0.00018862,2]
[358370707,1745007488033,792.9182,7.945e-05,2]
[358370713,1745008032129,-250.0,0.00019136,2]
[358370714,1745008032150,-250.0,0.00019222,2]
[358370715,1745008032171,-166.78,0.00019252,2]
[358370716,1745008032191,-46.94949533,0.000193,2]
[358370717,1745008036089,-308.3007159,0.000193,2]
[358370718,1745008036109,-203.49,0.00019374,2]
[358370719,1745008036130,-2964.06,0.00019404,2]
[358370720,1745008036150,-607.3,0.00019464,2]
[358370721,1745008036173,-667.69,0.00019482,2]
[358370722,1745008036193,-192.70529896,0.00019561,2]
[358370723,1745008051127,-154.61517874,0.00019364,2]
[358370724,1745008051149,-19.90966189,0.00019561,2]
[358370725,1745008051169,-212.61496085,0.00019562,2]
[358370726,1745008051191,-300.0,0.00019661,2]
[358370727,1745008051211,-850.0,0.00019661,2]
[358370728,1745008051236,-8964.84290261,0.00019662,2]
[358370729,1745008053094,-963.21225432,0.00019662,2]
[358370730,1745008128960,211.0,0.00048242,30]
[358370731,1745008137599,250.0,0.00017,2]
[358370735,1745008140744,2000.0,0.00048242,120]
[358370737,1745008155465,318.81947642,0.00048242,30]
[358370738,1745008157140,358.90098403,0.00048242,60]
[358370746,1745008203119,386.88122421,0.00048242,120]
[358370747,1745008214888,600.92,0.00017395,2]
[358370751,1745008231702,-300.0,0.00019,2]
[358370752,1745008231711,-250.0,0.00019203,2]
[358370753,1745008231721,-250.0,0.00019331,2]
[358370755,1745008231730,-98.46097204,0.00019659,2]
[358370757,1745008231741,-502.45902796,0.00019659,2]
[358370759,1745008231750,-300.0,0.00019661,2]
[358370761,1745008231760,-90.51161959,0.00019661,2]
[358370763,1745008231775,-209.48838041,0.00019661,2]
[358370764,1745008231784,-343.29647686,0.00019662,2]
[358370765,1745008231796,-405.23430088,0.00019662,2]
[358370766,1745008231820,-8193.28823532,0.00019662,2]
[358370767,1745008231831,-291.26119028,0.00019662,2]
[358370768,1745008231843,-2120.56695028,0.00019662,2]
[358370769,1745008231854,-540.3519349,0.00019662,2]
[358370770,1745008231888,-2077.94575455,0.00019662,2]
[358370771,1745008231897,-200.0,0.00019662,2]
[358370772,1745008231907,-165.67949255,0.00019662,2]
[358370773,1745008231916,-277.59384995,0.00019662,2]
[358370774,1745008231926,-1644.5,0.00019666,2]
[358370775,1745008231935,-1000.0,0.000197,2]
[358370776,1745008231945,-1000.0,0.000198,2]
[358370777,1745008231954,-200.0,0.00019818,2]
[358370778,1745008231963,-550.0,0.00019885,2]
[358370779,1745008231972,-23031.5724,0.00019886,2]
[358370780,1745008231982,-1000.0,0.00019886,2]
[358370781,1745008231992,-500.0,0.000199,2]
[358370782,1745008232002,-591.2279,0.000199,2]
[358370783,1745008232011,-834.43,0.000199,2]
[358370784,1745008232021,-202.1703,0.000199,2]
[358370785,1745008232030,-203.0044,0.000199,2]
[358370786,1745008232038,-344.9839,0.000199,2]
[358370787,1745008232047,-1000.0,0.000199,2]
[358370788,1745008232056,-2600.43518771,0.000199,2]
[358370790,1745008232065,-1000.0,0.000199,2]
[358370792,1745008232075,-2491.9947,0.000199,2]
[358370794,1745008232085,-971.27807849,0.000199,2]
[358370796,1745008232095,-971.27807849,0.000199,2]
[358370798,1745008232104,-152.70308826,0.00019973,2]
[358370800,1745008232116,-450.02570872,0.00019973,2]
[358370802,1745008232124,-500.0,0.00019973,2]
[358370805,1745008232133,-500.0,0.00019973,2]
[358370808,1745008232142,-694.99429328,0.00019986,2]
[358370815,1745008232175,-250.28547636,0.00019986,2]
[358370817,1745008232186,-22.89315246,0.00019986,2]
[358370819,1745008232195,-700.19283205,0.00019986,2]
[358370822,1745008232206,-539.75,0.00019986,2]
[358370824,1745008232217,-539.60894869,0.00019986,2]
[358370830,1745008232262,-519.20423304,0.00019986,2]
[358370934,1745008238040,-8208.35616065,0.00019986,2]
[358370936,1745008238256,-3041.42226537,0.00019986,2]
[358371080,1745008241698,-3066.56663114,0.000199,2]
[358371081,1745008241707,-7635.553588,0.00019986,2]
[358371082,1745008241717,-7686.6856009,0.00019986,2]
[358371083,1745008241726,-261.86484945,0.0001999,2]
[358371084,1745008241736,-500.0,0.00019999,2]
[358371085,1745008241745,-500.0,0.00019999,2]
[358371086,1745008241755,-152.09289653,0.00019999,2]
[358371087,1745008241764,-2144.18,0.00019999,2]
[358371088,1745008241773,-3191264.29837496,0.0002,2]
[358371089,1745008241785,-1513.53702001,0.0002,2]
[358371118,1745008242940,-213035.19590709,0.0002,2]
[358371413,1745008246013,-107999.81742649,0.0002,2]
[358371481,1745008327349,153.43,0.00027425,30]
[358371482,1745008361513,150.0,0.00048242,30]
[358371483,1745008467118,171.70756228,0.000199,3]
[358371485,1745008492156,-300.0,0.00019203,2]
[358371486,1745008492179,-200.0,0.00019795,2]
[358371487,1745008492201,-159.83299311,0.000198,2]
[358371488,1745008492225,-300.0,0.00019899,2]
[358371489,1745008492247,-1000.0,0.000199,2]
[358371490,1745008492269,-1000.0,0.000199,2]
[358371491,1745008492292,-2500.0,0.000199,2]
[358371492,1745008492327,-159.83299311,0.000199,2]
[358371493,1745008492352,-253.0470722,0.000199,2]
[358371494,1745008492375,-6294.47852457,0.000199,2]
[358371495,1745008492398,-500.0,0.00019973,2]
[358371496,1745008492421,-500.0,0.00019973,2]
[358371497,1745008492447,-1235.9416074,0.00019986,2]
[358371498,1745008492469,-1244.2181759,0.00019986,2]
[358371499,1745008492492,-33101.5177189,0.00019986,2]
[358371500,1745008492515,-1512.8332687,0.00019986,2]
[358371501,1745008492540,-467.84844417,0.0001999,2]
[358371502,1745008492564,-500.0,0.00019999,2]
[358371503,1745008492589,-500.0,0.00019999,2]
[358371504,1745008492612,-152.09289653,0.00019999,2]
[358371505,1745008492637,-98118.35630541,0.0002,2]
[358371506,1745008503921,-1000.0,0.000199,2]
[358371507,1745008503945,-9249.08624415,0.000199,2]